bitfinex-derivatives/quotes_SOLF0:USTF0_20250409
["timestamp","ask_amount","ask_price","bid_price","bid_amount"]
[1744179781697,9.4359,106.05,106.04,0.07077024]
[1744179782498,40.9,106.05,105.99,2.3721]
[1744179782890,71.68629398,106.05,105.98,2.3019]
[1744179783090,9.439,106.02,105.98,2.3019]
[1744179783402,73.90159398,106.05,105.98,11.7437]
[1744179783607,9.4391,106.02,105.98,2.3019]
[1744179783903,0.06587179,106.03,106.0,0.06833377]
[1744179784092,9.4394,106.01,106.0,0.06833377]
[1744179784296,40.86,106.02,105.96,2.3774]
[1744179784508,40.86,106.02,105.93,4.7048]
[1744179784699,30.78629398,106.01,105.93,4.7048]
[1744179784895,33.14219398,106.01,105.93,14.151]
[1744179785097,2.2153,106.0,105.93,4.7048]
[1744179785301,40.86,105.99,105.93,4.7048]
[1744179785502,0.06210711,105.98,105.95,0.06017819]
[1744179785805,9.4436,105.97,105.95,0.06017819]
[1744179786006,0.06210711,105.98,105.95,0.06017819]
[1744179786208,9.443,105.97,105.95,0.06017819]
[1744179786706,0.06210711,105.98,105.95,0.06017819]
[1744179786906,9.4435,105.97,105.95,0.06017819]
[1744179787409,0.06210711,105.98,105.95,0.06017819]
[1744179787410,0.06210711,105.98,105.95,163.3650155]
[1744179788210,0.06210711,105.98,105.95,172.8094155]
[1744179788407,0.06210711,105.98,105.95,163.3650155]
[1744179788710,9.4401,106.01,105.97,9.4426]
[1744179789014,40.88,106.03,105.97,9.4426]
[1744179789212,9.4398,106.01,105.96,9.4431]
[1744179789511,40.88,106.03,105.96,9.4431]
[1744179789707,40.88,106.03,105.95,167.98203731]
[1744179790009,0.07110245,106.01,105.98,0.06133506]
[1744179790510,9.51120245,106.01,105.98,0.06133506]
[1744179791012,9.4405,106.0,105.98,0.06133506]
[1744179791202,0.07110245,106.01,105.98,0.06133506]
[1744179791609,9.4407,106.0,105.98,0.06133506]
[1744179792917,40.88,106.0,105.98,0.06133506]
[1744179793510,9.4412,105.99,105.98,0.06133506]
[1744179796814,0.07110245,106.01,105.98,0.06133506]
[1744179797513,0.07110245,106.01,105.99,9.4412]
[1744179797715,0.07110245,106.01,105.98,2.37163506]
[1744179798213,40.88,106.0,105.98,0.06133506]
[1744179798517,9.4412,105.99,105.98,0.06133506]
[1744179803023,50.3208,106.0,105.98,0.06133506]
[1744179803216,40.88,106.0,105.98,0.06133506]
[1744179803416,0.07110245,106.01,105.98,9.50273506]
[1744179803618,9.51070245,106.01,105.98,9.50273506]
[1744179804018,9.4403,106.0,105.98,0.06133506]
[1744179804225,0.07110245,106.01,105.98,0.06133506]
[1744179804517,9.51100245,106.01,105.98,0.06133506]
[1744179805011,0.07110245,106.01,105.98,0.06133506]
[1744179805216,9.4412,105.99,105.98,0.06133506]
[1744179805616,0.07110245,106.01,105.98,0.06133506]
[1744179806223,9.4408,106.0,105.98,0.06133506]
[1744179808520,0.07110245,106.01,105.98,0.06133506]
[1744179808720,40.88,106.0,105.98,0.06133506]
[1744179808920,9.4412,105.99,105.98,0.06133506]
[1744179815430,0.07110245,106.01,105.98,0.06133506]
[1744179815832,0.07110245,106.01,105.99,9.4408]
[1744179816429,0.07110245,106.01,105.99,9.4412]
[1744179816629,0.07110245,106.01,105.98,0.06133506]
[1744179817930,0.07110245,106.01,106.0,9.4403]
[1744179818826,0.07110245,106.01,105.99,9.4407]
[1744179819029,9.51100245,106.01,105.98,0.06133506]
[1744179819825,9.51100245,106.01,105.98,9.50303506]
[1744179820035,0.07110245,106.01,105.98,0.06133506]
[1744179820224,40.86,106.0,105.98,0.06133506]
[1744179820633,9.4412,105.99,105.98,0.06133506]
[1744179821733,50.3007,106.0,105.98,0.06133506]
[1744179822031,40.86,106.0,105.98,0.06133506]
[1744179823530,40.86,106.0,105.91,40.86]
[1744179823727,45.4447,106.0,105.92,2.2895]
[1744179824233,9.4434,105.97,105.94,9.4456]
[1744179824830,9.51537581,105.97,105.94,9.5084755]
[1744179826332,0.07197581,105.97,105.95,9.4447]
[1744179826634,0.07197581,105.97,105.94,0.0628755]
[1744179827128,9.51507581,105.97,105.94,9.5080755]
[1744179828031,0.07197581,105.97,105.94,9.5080755]
[1744179829235,0.07197581,105.97,105.94,0.0628755]
[1744179829430,0.07197581,105.97,105.96,9.4439]
[1744179829632,0.07197581,105.97,105.95,4.5458]
[1744179830841,0.07197581,105.97,105.96,9.4439]
[1744179831142,40.86,106.03,105.95,4.5458]
[1744179831332,9.4395,106.01,105.95,4.5458]
[1744179831536,40.86,106.03,105.95,4.5458]
[1744179832140,0.06853774,106.0,105.98,9.5077083]
[1744179832650,40.92853774,106.0,105.98,0.0662083]
[1744179833644,9.4412,105.99,105.98,0.0662083]
[1744179838140,40.92853774,106.0,105.98,0.0662083]
[1744179838945,9.4412,105.99,105.98,0.0662083]
[1744179839947,9.4447,105.96,105.93,2.3058]
[1744179840349,9.4465,105.94,105.92,2.4118]
[1744179840545,40.88,105.97,105.9,2.1845]
[1744179840934,9.4455,105.95,105.92,0.0611479]
[1744179841138,0.06726192,105.95,105.92,0.0611479]
[1744179841745,9.4461,105.94,105.92,0.0611479]
[1744179842248,521.9143695,106.07,105.92,19.32211642]
[1744179842437,19.26096852,106.02,105.92,60.14096852]
[1744179842838,19.26096852,106.02,105.93,62.0]
[1744179843038,19.26096852,106.02,105.94,19.26096852]
[1744179843248,9.439,106.02,105.97,9.4421]
[1744179843445,0.06650343,105.99,105.97,9.50700207]
[1744179843648,0.06650343,105.99,105.97,0.06490207]
[1744179843944,28.33,105.94,105.78,389.41005521]
[1744179844148,30.78838639,105.87,105.78,389.41005521]
[1744179844452,4.13730482,105.86,105.79,536.56390293]
[1744179844657,4.13730482,105.85,105.8,4.7046]
[1744179844848,4.13730482,105.84,105.83,259.94922372]
[1744179845049,13.65874407,105.84,105.83,259.94922372]
[1744179845250,30.78838639,105.83,105.82,178.69962651]
[1744179845548,9.4564,105.82,105.81,312.73552164]
[1744179845846,23.44456832,105.82,105.81,312.73552164]
[1744179846050,23.44456832,105.82,105.81,297.70372164]
[1744179846245,32.90456832,105.82,105.81,171.03850725]
[1744179846442,32.90456832,105.82,105.81,148.90970725]
[1744179846747,32.90456832,105.82,105.75,1209.09016562]
[1744179846748,290.14125872,105.82,105.75,40.86]
[1744179846946,13.98816832,105.81,105.75,40.86]
[1744179847148,13.98816832,105.8,105.75,50.3221]
[1744179847346,13.98816832,105.79,105.75,50.3221]
[1744179847552,13.98816832,105.78,105.75,50.3221]
[1744179847747,13.98816832,105.77,105.75,50.3221]
[1744179847950,0.0685459,105.78,105.75,50.38918583]
[1744179848149,276.1530904,105.82,105.75,40.86]
[1744179848350,8.31140367,105.81,105.75,40.86]
[1744179848648,157.14083946,105.77,105.74,9.4632]
[1744179848958,157.14083946,105.77,105.75,40.88]
[1744179849144,157.14083946,105.77,105.74,9.4628]
[1744179849341,157.20103493,105.77,105.75,40.94362303]
[1744179849553,157.20103493,105.77,105.75,0.06362303]
[1744179849751,157.20103493,105.77,105.76,40.88]
[1744179849952,8.35923499,105.77,105.76,17.92784114]
[1744179851044,8.34916217,105.77,105.76,17.92784114]
[1744179851250,202.60226785,105.77,105.75,0.06362303]
[1744179851451,8.2889667,105.76,105.75,0.06362303]
[1744179851755,8.2889667,105.76,105.73,47.8618]
[1744179851952,340.23477183,105.77,105.73,57.3258]
[1744179852152,8.27651676,105.76,105.73,57.3258]
[1744179852356,8.27651676,105.75,105.73,57.3258]
[1744179852550,340.17457636,105.76,105.73,57.3258]
[1744179852745,8.26658711,105.75,105.73,57.3258]
[1744179853054,8.2670956,105.74,105.73,47.93180608]
[1744179853250,340.17457636,105.76,105.73,45.65460608]
[1744179853455,8.256526,105.75,105.73,24.53342769]
[1744179853654,349.69895308,105.76,105.73,24.53342769]
[1744179853855,8.25650838,105.75,105.73,24.53342769]
[1744179854053,340.23655308,105.76,105.73,24.53342769]
[1744179854252,340.23655308,105.76,105.73,24.24965925]
[1744179854453,155.38237068,105.74,105.73,23.96587068]
[1744179855664,22.4012334,105.76,105.73,23.96587068]
[1744179855869,8.24084901,105.75,105.73,23.96587068]
[1744179856056,9.4628,105.75,105.73,23.96587068]
[1744179856257,8.23406672,105.74,105.73,23.96587068]
[1744179856466,12.9394334,105.76,105.73,23.96587068]
[1744179856766,8.23366328,105.75,105.73,23.96587068]
[1744179856962,22.4017334,105.76,105.73,23.96587068]
[1744179857164,8.22749143,105.75,105.73,23.96587068]
[1744179857361,22.4017334,105.76,105.73,23.96587068]
[1744179857565,8.22776006,105.75,105.73,23.96587068]
[1744179857770,9.4628,105.75,105.73,23.96587068]
[1744179858769,9.4628,105.75,105.73,0.07000608]
[1744179858967,8.22266587,105.74,105.73,0.07000608]
[1744179860070,13.63445865,105.74,105.69,40.9]
[1744179860372,13.61751525,105.73,105.67,2.3996]
[1744179860668,13.61751525,105.72,105.67,2.3996]
[1744179860862,5.40724183,105.71,105.67,2.3996]
[1744179861070,9.4646,105.73,105.69,9.4672]
[1744179861259,13.60953816,105.72,105.7,40.92]
[1744179861565,9.4622,105.76,105.7,40.92]
[1744179861758,9.4622,105.76,105.71,2.3622]
[1744179861961,12.87745668,105.73,105.71,2.3622]
[1744179862171,12.87745668,105.73,105.71,11.8282]
[1744179862366,12.87745668,105.73,105.7,40.92]
[1744179862561,5.60265668,105.73,105.7,40.92]
[1744179862767,5.66601064,105.73,105.7,71.77135129]
[1744179862966,5.66601064,105.73,105.72,9.4653]
[1744179863574,0.06335396,105.73,105.72,9.4653]
[1744179864163,38.63237004,105.79,105.72,40.24838639]
[1744179864366,38.63237004,105.79,105.73,40.92]
[1744179864670,48.09157004,105.79,105.75,9.4618]
[1744179864866,7.95350293,105.78,105.76,40.92]
[1744179865072,38.63237004,105.79,105.76,40.92]
[1744179865277,0.06257522,105.78,105.76,40.98779894]
[1744179865669,0.06257522,105.78,105.76,50.44929894]
[1744179866184,0.06257522,105.78,105.76,40.98779894]
[1744179868073,0.06257522,105.78,105.77,40.92]
[1744179869272,0.06257522,105.78,105.77,50.3809]
[1744179869467,4.649,105.83,105.77,40.92]
[1744179869668,7.69716154,105.82,105.77,40.92]
[1744179869873,7.69716154,105.81,105.77,40.92]
[1744179870073,9.4565,105.82,105.78,9.4594]
[1744179870270,7.70045506,105.81,105.77,40.92]
[1744179870477,9.4565,105.82,105.77,40.92]
[1744179870777,0.07116762,105.8,105.78,9.52726623]
[1744179870969,0.07116762,105.8,105.78,0.06746623]
[1744179871169,17.16199127,105.79,105.78,0.06746623]
[1744179871570,7.70289127,105.79,105.78,0.06746623]
[1744179872580,7.70289127,105.79,105.78,9.52746623]
[1744179872772,0.07116762,105.8,105.78,9.52746623]
[1744179873280,0.07116762,105.8,105.78,0.06746623]
[1744179873579,5.09785256,105.79,105.78,0.06746623]
[1744179874178,5.09785256,105.79,105.78,9.52746623]
[1744179875483,12.82198253,105.79,105.78,0.06746623]
[1744179876385,12.83161419,105.79,105.78,0.06746623]
[1744179877387,12.83161419,105.79,105.78,9.52746623]
[1744179878185,12.7639938,105.79,105.78,9.52746623]
[1744179878588,12.77517902,105.79,105.78,9.52746623]
[1744179878785,5.03986383,105.79,105.78,9.52746623]
[1744179879187,12.78313569,105.79,105.78,9.52746623]
[1744179879388,5.03986383,105.79,105.78,9.52746623]
[1744179880091,12.78994541,105.79,105.78,9.52746623]
[1744179880480,12.78994541,105.79,105.78,0.06746623]
[1744179882391,22.24904541,105.79,105.78,0.06746623]
[1744179882585,12.78994541,105.79,105.78,0.06746623]
[1744179886482,22.24904541,105.79,105.78,0.06746623]
[1744179887501,12.78994541,105.79,105.78,0.06746623]
[1744179887891,22.24904541,105.79,105.78,0.06746623]
[1744179890895,12.78994541,105.79,105.78,0.06746623]
[1744179892498,12.78994541,105.79,105.78,9.52746623]
[1744179892705,11.57244182,105.79,105.78,9.52746623]
[1744179896509,11.57244182,105.79,105.78,0.06746623]
[1744179897011,11.57244182,105.79,105.78,9.52746623]
[1744179897210,19.31886044,105.86,105.78,19.38632667]
[1744179897399,3.82066941,105.85,105.79,40.9]
[1744179897598,13.27566941,105.84,105.81,9.4568]
[1744179897797,3.82066941,105.83,105.79,40.9]
[1744179897997,3.82066941,105.82,105.79,40.9]
[1744179898203,13.27796941,105.81,105.79,50.359]
[1744179898497,9.4573,105.81,105.79,50.4314087]
[1744179898706,0.06873229,105.82,105.79,50.4314087]
[1744179899002,3.82063034,105.81,105.79,50.4314087]
[1744179899203,3.82103433,105.8,105.79,40.9724087]
[1744179899706,13.27923433,105.8,105.79,0.0724087]
[1744179900913,3.82103433,105.8,105.79,0.0724087]
[1744179901410,23.13989477,105.8,105.76,40.9]
[1744179901608,3.82103433,105.79,105.76,40.9]
[1744179901908,13.28153433,105.78,105.76,40.9]
[1744179902108,3.82103433,105.77,105.76,40.9]
[1744179902298,43.3059,105.81,105.76,40.9]
[1744179902503,3.89153061,105.8,105.77,0.06319407]
[1744179902703,3.82216356,105.79,105.77,0.06319407]
[1744179902905,3.82216356,105.78,105.77,9.52409407]
[1744179903109,3.82220078,105.78,105.77,0.06319407]
[1744179903303,0.06935964,105.8,105.77,0.06319407]
[1744179903506,3.82226433,105.79,105.78,9.46]
[1744179905211,3.8237575,105.79,105.77,0.06319407]
[1744179905506,0.06935964,105.8,105.77,0.06319407]
[1744179905707,3.82744851,105.79,105.78,9.46]
[1744179905912,4.042e-05,105.79,105.77,19.38205451]
[1744179906099,0.06935964,105.8,105.78,2.2788]
[1744179906308,23.83136044,105.86,105.79,40.86]
[1744179906608,23.83136044,105.86,105.79,43.147]
[1744179906808,19.31886044,105.84,105.79,40.86]
[1744179907011,19.31886044,105.82,105.76,40.86]
[1744179907414,9.4577,105.81,105.78,9.4599]
[1744179907710,0.0649386,105.8,105.78,0.06448349]
[1744179908311,0.0649386,105.8,105.79,9.4591]
[1744179908511,0.0649386,105.8,105.78,0.06448349]
[1744179909108,9.4591,105.79,105.78,0.06448349]
[1744179909308,9.4591,105.79,105.71,2.3666]
[1744179909309,6.7847943,105.79,105.71,2.3666]
[1744179909513,66.96365474,105.78,105.7,40.86]
[1744179909713,8.9909943,105.77,105.7,40.86]
[1744179909908,6.7847943,105.76,105.7,60.17886044]
[1744179910109,6.7847943,105.75,105.7,60.17886044]
[1744179910305,6.7847943,105.74,105.7,60.17886044]
[1744179910510,9.43e-05,105.73,105.71,0.07168228]
[1744179910818,4.057e-05,105.74,105.71,0.07168228]
[1744179911117,4.057e-05,105.74,105.72,19.31886044]
[1744179911316,4.057e-05,105.74,105.73,45.5823]
[1744179911507,4.057e-05,105.74,105.73,47.9911]
[1744179911817,4.057e-05,105.74,105.73,9.4644]
[1744179912816,4.057e-05,105.74,105.73,69.66326044]
[1744179914916,4.057e-05,105.74,105.73,131.66326044]
[1744179915519,4.7402,105.81,105.78,9.4594]
[1744179915916,14.1981,105.81,105.78,9.4594]
[1744179916116,2.3735,105.83,105.8,9.4581]
[1744179916518,2.3735,105.83,105.76,40.88]
[1744179916720,2.3735,105.83,105.8,9.52714523]
[1744179916917,0.06859018,105.83,105.8,0.06954523]
[1744179917224,0.06859018,105.83,105.82,9.4564]
[1744179917416,0.06859018,105.83,105.8,0.06954523]
[1744179917614,9.52469018,105.83,105.8,0.06954523]
[1744179918325,0.06859018,105.83,105.8,9.52744523]
[1744179918525,0.06859018,105.83,105.8,0.06954523]
[1744179918833,0.06859018,105.83,105.82,9.4564]
[1744179922027,0.06859018,105.83,105.8,0.06954523]
[1744179922528,6.59683398,105.82,105.8,0.06954523]
[1744179922722,0.06859018,105.83,105.8,0.06954523]
[1744179922926,6.5967643,105.82,105.8,0.06954523]
[1744179923126,0.06859018,105.83,105.8,0.06954523]
[1744179923325,6.59637132,105.82,105.8,0.06954523]
[1744179923527,0.06859018,105.83,105.8,0.06954523]
[1744179923728,6.59567089,105.82,105.81,9.4566]
[1744179925327,6.59567089,105.82,105.8,0.06954523]
[1744179925530,6.59567089,105.81,105.8,0.06954523]
[1744179927528,6.59567089,105.81,105.8,9.52764523]
[1744179928231,0.06859018,105.83,105.81,9.457]
[1744179928431,6.59320293,105.82,105.81,9.457]
[1744179928632,6.59320293,105.82,105.8,9.52724523]
[1744179928833,6.59320293,105.81,105.8,9.52724523]
[1744179931329,0.06859018,105.83,105.82,9.4564]
[1744179931534,6.66055433,105.83,105.82,9.4564]
[1744179931735,6.66055433,105.83,105.82,50.3164]
[1744179932835,5.433e-05,105.83,105.82,50.3164]
[1744179933036,50.3114,105.88,105.85,9.4529]
[1744179933232,9.4514,105.88,105.85,9.4529]
[1744179933844,9.4506,105.89,105.86,9.4526]
[1744179934045,0.06049488,105.88,105.86,9.4526]
[1744179934343,0.06049488,105.88,105.85,0.06670677]
[1744179934548,9.51159488,105.88,105.85,9.51970677]
[1744179935038,9.51159488,105.88,105.85,0.06670677]
[1744179935243,40.88049488,105.88,105.85,0.06670677]
[1744179935839,9.4528,105.86,105.85,0.06670677]
[1744179936039,4.5843,105.87,105.85,0.06670677]
[1744179936342,4.5843,105.87,105.85,9.51980677]
[1744179936545,40.88049488,105.88,105.85,0.06670677]
[1744179937244,50.33159488,105.88,105.86,9.4528]
[1744179937438,50.33159488,105.88,105.85,0.06670677]
[1744179937746,9.4523,105.87,105.85,0.06670677]
[1744179938247,40.88049488,105.88,105.85,0.06670677]
[1744179938449,50.33199488,105.88,105.85,9.51980677]
[1744179938748,0.06049488,105.88,105.85,0.06670677]
[1744179939246,0.06049488,105.88,105.86,9.4523]
[1744179939447,0.06049488,105.88,105.85,0.06670677]
[1744179939743,9.51159488,105.88,105.85,9.52000677]
[1744179940046,0.06049488,105.88,105.85,0.06670677]
[1744179940651,9.51149488,105.88,105.85,9.52000677]
[1744179942455,0.06049488,105.88,105.86,9.4528]
[1744179944545,9.51159488,105.88,105.86,9.4528]
[1744179944754,0.06049488,105.88,105.85,0.06670677]
[1744179944952,19.2884893,105.86,105.77,19.2884893]
[1744179945145,19.2884893,105.84,105.76,4.5697]
[1744179945345,19.2884893,105.84,105.76,23.8581893]
[1744179945650,2.3861,105.85,105.78,19.2884893]
[1744179945852,19.2884893,105.87,105.79,40.82]
[1744179946249,0.06862132,105.84,105.82,0.06229155]
[1744179947354,0.06862132,105.84,105.82,9.51809155]
[1744179947854,9.52352132,105.84,105.82,0.06229155]
[1744179948351,9.4555,105.83,105.82,0.06229155]
[1744179948862,9.4595,105.79,105.76,14.0311]
[1744179949155,2.2629,105.82,105.72,19.2884893]
[1744179949339,2.2629,105.82,105.74,24.0566893]
[1744179949546,9.456,105.83,105.76,19.2884893]
[1744179949748,19.2884893,105.84,105.76,19.2884893]
[1744179949951,9.51930181,105.81,105.78,0.06034783]
[1744179950452,9.4591,105.79,105.78,0.06034783]
[1744179951049,21.5217893,105.8,105.75,40.82]
[1744179951753,21.5217893,105.8,105.72,559.1884893]
[1744179952153,0.06278441,105.77,105.75,0.06233106]
[1744179953456,9.4618,105.76,105.75,0.06233106]
[1744179953855,40.82,105.76,105.71,9.4661]
[1744179954056,9.4632,105.75,105.72,9.465]
[1744179954256,9.4632,105.75,105.69,43.0541]
[1744179954459,40.82,105.76,105.69,43.0541]
[1744179954857,50.2822,105.76,105.69,43.0541]
[1744179955054,0.06637305,105.74,105.71,0.05991963]
[1744179955458,0.06637305,105.74,105.72,9.4648]
[1744179956058,0.06637305,105.74,105.71,0.05991963]
[1744179956660,0.06637305,105.74,105.72,9.4648]
[1744179957258,0.06637305,105.74,105.71,0.05991963]
[1744179958463,0.06637305,105.74,105.72,9.4645]
[1744179958957,0.06637305,105.74,105.71,0.05991963]
[1744179959363,0.06637305,105.74,105.72,40.84]
[1744179959756,0.06637305,105.74,105.73,9.4644]
[1744179960660,52.6957,105.79,105.75,9.4619]
[1744179961761,9.52703007,105.78,105.76,0.06706731]
[1744179961952,0.06683007,105.78,105.76,0.06706731]
[1744179962158,19.35531937,105.78,105.76,0.06706731]
[1744179962377,50.36440867,105.78,105.65,40.84]
[1744179962663,19.2884893,105.73,105.64,6.7936]
[1744179962859,9.4675,105.7,105.64,6.7936]
[1744179963062,4.539,105.72,105.64,6.7936]
[1744179963254,4.539,105.72,105.65,40.84]
[1744179963462,0.06851686,105.69,105.67,0.07050462]
[1744179964262,0.06851686,105.69,105.67,9.54030462]
[1744179964459,0.06851686,105.69,105.67,0.07050462]
[1744179967361,9.4689,105.68,105.67,0.07050462]
[1744179967862,9.47,105.67,105.61,561.9113893]
[1744179968064,9.47,105.67,105.61,544.919]
[1744179968967,0.06874703,105.65,105.64,9.4725]
[1744179969469,0.06874703,105.65,105.63,0.06329323]
[1744179969657,0.06874703,105.65,105.63,9.53639323]
[1744179969861,0.06874703,105.65,105.63,0.06329323]
[1744179970159,0.06874703,105.65,105.64,9.4725]
[1744179972474,0.06874703,105.65,105.63,9.53639323]
[1744179973267,0.06874703,105.65,105.64,9.4725]
[1744179974477,0.06874703,105.65,105.63,9.53629323]
[1744179974772,0.06874703,105.65,105.63,0.06329323]
[1744179975870,0.06874703,105.65,105.63,9.53619323]
[1744179976375,0.06874703,105.65,105.63,0.06329323]
[1744179976872,9.54094703,105.65,105.63,0.06329323]
[1744179977176,0.06874703,105.65,105.63,0.06329323]
[1744179977875,9.4725,105.64,105.63,0.06329323]
[1744179978577,9.54084703,105.65,105.63,0.06329323]
[1744179978875,0.06874703,105.65,105.63,0.06329323]
[1744179979475,0.06874703,105.65,105.64,9.4725]
[1744179980476,0.06874703,105.65,105.63,0.06329323]
[1744179980477,0.06874703,105.65,105.55,1.6472593]
[1744179980670,0.06874703,105.65,105.04,778.82011042]
[1744179980671,19.2884893,105.56,105.43,338.85739539]
[1744179980875,60.1284893,105.57,105.47,4.5576]
[1744179981075,19.2884893,105.55,105.47,4.5576]
[1744179981278,19.2884893,105.55,105.47,157.95067492]
[1744179981476,40.84,105.57,105.47,157.95067492]
[1744179981774,0.0597014,105.52,105.5,0.07086204]
[1744179982077,19.2884893,105.54,105.47,157.95067492]
[1744179982272,0.06243804,105.52,105.5,0.06497437]
[1744179983271,0.06243804,105.52,105.51,40.86]
[1744179984080,31.06940922,105.6,105.51,40.86]
[1744179984476,31.06940922,105.6,105.52,4.7881]
[1744179984679,9.4793,105.57,105.52,4.7881]
[1744179984982,31.06940922,105.6,105.52,4.7881]
[1744179985169,71.92940922,105.6,105.52,4.7881]
[1744179985373,0.06730679,105.57,105.52,4.7881]
[1744179985582,0.06730679,105.57,105.55,0.06886842]
[1744179990287,0.06730679,105.57,105.55,9.54866842]
[1744179990888,0.06730679,105.57,105.56,9.4797]
[1744179991786,0.06730679,105.57,105.55,0.06886842]
[1744179992582,0.06730679,105.57,105.48,31.06940922]
[1744179992777,0.06730679,105.57,105.4,28.4812]
[1744179992778,28.33,105.49,105.31,31.06940922]
[1744179992985,31.06940922,105.54,105.37,33.96570922]
[1744179993287,31.06940922,105.54,105.4,31.06940922]
[1744179993487,31.06940922,105.54,105.41,2.9731]
[1744179993691,31.06940922,105.54,105.42,46.38]
[1744179993881,9.487,105.48,105.46,0.06655481]
[1744179994086,0.06238933,105.49,105.46,0.06655481]
[1744179994393,9.4878,105.47,105.46,0.06215359]
[1744179994596,0.06238933,105.49,105.46,0.06215359]
[1744179994796,0.06238933,105.49,105.46,46.46215359]
[1744179995091,9.54848933,105.49,105.46,46.46215359]
[1744179995695,9.54848933,105.49,105.47,62.0]
[1744179995996,61.42098746,105.49,105.47,62.0]
[1744179996692,9.4869,105.48,105.47,62.0]
[1744179997988,61.42128746,105.49,105.47,62.0]
[1744179998191,51.93488746,105.49,105.47,62.0]
[1744179998491,0.93488746,105.51,105.47,2.9027]
[1744179999284,9.4865,105.49,105.48,62.0]
[1744180002194,9.4869,105.48,105.47,0.06844322]
[1744180005292,40.55580922,105.49,105.47,0.06844322]
[1744180005494,9.4864,105.49,105.47,0.06844322]
[1744180006794,0.0649565,105.5,105.47,0.06844322]
[1744180007393,9.4862,105.49,105.47,0.06844322]
[1744180008503,0.0649565,105.5,105.47,0.06844322]
[1744180008803,31.06940922,105.54,105.47,500.76844322]
[1744180008996,74.75,105.58,105.47,500.7]
[1744180009202,31.06940922,105.52,105.47,500.7]
[1744180009499,19.42930179,105.51,105.47,500.7]
[1744180009699,19.42930179,105.51,105.46,49.3175]
[1744180009899,0.07226145,105.5,105.48,0.06098349]
[1744180010098,9.486,105.49,105.48,0.06098349]
[1744180010799,9.55756145,105.5,105.48,0.06098349]
[1744180011799,0.07226145,105.5,105.48,0.06098349]
[1744180012404,0.07226145,105.5,105.49,9.486]
[1744180012608,0.07226145,105.5,105.49,55.906]
[1744180014400,0.07226145,105.5,105.49,46.42]
[1744180015306,0.07226145,105.5,105.49,55.906]
[1744180016105,9.4837,105.52,105.49,55.906]
[1744180017308,9.54421502,105.52,105.49,55.906]
[1744180017607,9.54421502,105.52,105.49,9.486]
[1744180018108,0.06051502,105.52,105.48,2.82158349]
[1744180019412,0.06051502,105.52,105.48,12.30808349]
[1744180020212,9.4842,105.51,105.48,12.30808349]
[1744180020512,0.06051502,105.52,105.48,12.30808349]
[1744180020707,9.54461502,105.52,105.48,12.30808349]
[1744180020918,19.42930179,105.49,105.42,545.5]
[1744180021307,19.42930179,105.46,105.43,9.4908]
[1744180021612,19.42930179,105.5,105.42,564.92930179]
[1744180021811,19.42930179,105.5,105.43,5.6338]
[1744180022015,0.06105282,105.47,105.46,9.4879]
[1744180022311,0.06105282,105.47,105.46,54.2879]
[1744180023012,19.42930179,105.53,105.46,44.8]
[1744180023408,9.4838,105.52,105.46,44.8]
[1744180023608,19.42930179,105.53,105.46,44.8]
[1744180023813,19.42930179,105.53,105.47,62.0]
[1744180024012,28.91220179,105.53,105.47,62.0]
[1744180024214,0.06791799,105.51,105.49,9.54827915]
[1744180024815,0.06791799,105.51,105.5,9.4851]
[1744180025615,0.06791799,105.51,105.49,57.15377915]
[1744180025911,0.06791799,105.51,105.49,47.66807915]
[1744180026812,0.06791799,105.51,105.5,9.4851]
[1744180028815,28.91040179,105.55,105.52,9.4829]
[1744180029015,122.44895525,105.57,105.52,9.4829]
[1744180029317,122.44895525,105.57,105.53,9.4817]
[1744180029613,103.01965346,105.57,105.53,9.4817]
[1744180029916,72.89872966,105.54,105.53,9.4817]
[1744180032920,9.54544583,105.56,105.53,9.4817]
[1744180035017,0.06554583,105.56,105.53,9.4817]
[1744180036519,9.54574583,105.56,105.52,9.55261065]
[1744180036719,9.54574583,105.56,105.52,0.06971065]
[1744180036922,0.06554583,105.56,105.52,0.06971065]
[1744180037121,0.06554583,105.56,105.52,44.84971065]
[1744180037622,0.06554583,105.56,105.53,9.4818]
[1744180038532,9.54534583,105.56,105.53,9.4818]
[1744180038821,9.54534583,105.56,105.52,44.84971065]
[1744180038822,19.49484762,105.56,105.52,0.06971065]
[1744180039025,9.4824,105.53,105.52,0.06971065]
[1744180039912,9.4848,105.51,105.49,2.8253]
[1744180040112,19.42930179,105.52,105.48,2.8778]
[1744180040310,44.78,105.52,105.45,2.9242]
[1744180040517,9.4891,105.46,105.41,47.7453]